bitfinex/quotes_BTCUSD_20250118
["timestamp","ask_amount","ask_price","bid_price","bid_amount"]
[1737215114859,0.095565,104640.0,104630.0,0.1]
[1737215115065,0.375629,104650.0,104640.0,0.1]
[1737215115255,0.280066,104650.0,104630.0,0.19902268]
[1737215115459,0.375626,104650.0,104640.0,0.1]
[1737215117885,0.29679519,104660.0,104650.0,0.1]
[1737215118219,0.293085,104660.0,104650.0,0.1]
[1737215118392,0.293085,104660.0,104640.0,0.1]
[1737215118393,0.095556,104650.0,104640.0,0.1]
[1737215118751,0.484197,104660.0,104640.0,0.1]
[1737215118879,0.095556,104650.0,104640.0,0.19806704]
[1737215119980,0.484623,104660.0,104640.0,0.19806704]
[1737215120225,0.006868,104660.0,104650.0,0.195556]
[1737215120441,0.000428,104660.0,104650.0,0.29457863]
[1737215120636,0.006868,104660.0,104650.0,0.29362304]
[1737215121358,0.102415,104660.0,104650.0,0.1]
[1737215121559,0.006868,104660.0,104650.0,0.195556]
[1737215121802,0.102415,104660.0,104650.0,0.1]
[1737215122003,0.006868,104660.0,104650.0,0.1]
[1737215122132,0.102415,104660.0,104650.0,0.1]
[1737215122341,0.006868,104660.0,104650.0,0.195556]
[1737215122539,0.006868,104660.0,104650.0,0.1]
[1737215122746,0.102415,104660.0,104650.0,0.1]
[1737215122998,0.095975,104660.0,104650.0,0.1]
[1737215123132,0.102415,104660.0,104650.0,0.1]
[1737215125508,0.095556,104650.0,104640.0,0.1]
[1737215126195,0.484628,104660.0,104640.0,0.195564]
[1737215126404,0.484628,104660.0,104640.0,0.19651954]
[1737215126605,0.293523,104660.0,104650.0,0.1]
[1737215126822,0.389074,104660.0,104640.0,0.19806704]
[1737215127031,0.095556,104650.0,104640.0,0.1]
[1737215127233,0.095556,104650.0,104630.0,0.47879576]
[1737215127460,0.389074,104660.0,104640.0,0.1]
[1737215127786,0.293524,104660.0,104640.0,0.29363204]
[1737215127916,0.102423,104660.0,104640.0,0.48571661]
[1737215128124,0.293518,104660.0,104640.0,0.48476104]
[1737215128327,0.287078,104660.0,104640.0,0.48476104]
[1737215128531,0.000428,104660.0,104650.0,0.5438194]
[1737215128750,0.000428,104660.0,104650.0,0.54286385]
[1737215130191,0.000428,104660.0,104650.0,0.64286385]
[1737215132335,0.000428,104660.0,104650.0,0.54286385]
[1737215133092,0.000428,104660.0,104650.0,1.06543194]
[1737215133297,0.000428,104660.0,104650.0,0.96543194]
[1737215133730,0.000428,104660.0,104650.0,1.06543194]
[1737215137087,0.000428,104660.0,104650.0,0.62684788]
[1737215139006,0.000428,104660.0,104650.0,0.52878084]
[1737215139921,0.000428,104660.0,104650.0,0.62684788]
[1737215142560,0.000428,104660.0,104650.0,0.54286385]
[1737215143444,0.000428,104660.0,104650.0,0.56676265]
[1737215143823,0.000428,104660.0,104650.0,0.44569561]
[1737215144067,0.000428,104660.0,104650.0,0.54376265]
[1737215144270,0.000428,104660.0,104650.0,0.56676265]
[1737215144495,0.000428,104660.0,104650.0,0.46676265]
[1737215144689,0.000428,104660.0,104650.0,0.56676265]
[1737215146136,0.000428,104660.0,104650.0,0.54376265]
[1737215146675,0.000428,104660.0,104650.0,0.44569561]
[1737215147059,0.000428,104660.0,104650.0,0.54376265]
[1737215147264,0.000428,104660.0,104650.0,0.44569561]
[1737215147759,0.000428,104660.0,104650.0,0.54376265]
[1737215149498,0.000428,104660.0,104650.0,0.56676265]
[1737215150740,0.000428,104660.0,104650.0,0.86546088]
[1737215150942,0.0833,104700.0,104690.0,0.29358704]
[1737215151059,0.0457,104710.0,104700.0,0.19551]
[1737215151271,0.0457,104710.0,104700.0,0.196465]
[1737215151672,0.11974,104720.0,104710.0,0.1]
[1737215151879,0.1133,104720.0,104710.0,0.29356804]
[1737215152079,0.11345005,104720.0,104710.0,0.29356804]
[1737215152285,0.03015005,104720.0,104710.0,0.39280885]
[1737215154474,0.03015005,104720.0,104710.0,0.68270708]
[1737215154698,0.03015005,104720.0,104710.0,0.78270708]
[1737215154866,0.03015005,104720.0,104710.0,0.91150708]
[1737215155486,0.03015005,104720.0,104710.0,0.74760885]
[1737215156689,0.03015005,104720.0,104710.0,0.86450708]
[1737215158178,0.03015005,104720.0,104710.0,0.88365323]
[1737215158436,5e-08,104720.0,104710.0,0.98365323]
[1737215159986,5e-08,104720.0,104710.0,1.12899317]
[1737215160213,5e-08,104720.0,104710.0,1.05909494]
[1737215160457,0.02563032,104740.0,104730.0,0.53344827]
[1737215160665,0.0261301,104740.0,104730.0,0.63268908]
[1737215161224,0.03031504,104740.0,104730.0,0.63268908]
[1737215161426,0.0261301,104740.0,104730.0,0.51579085]
[1737215161655,0.0261301,104740.0,104730.0,0.88268908]
[1737215161858,0.03050328,104740.0,104730.0,0.88268908]
[1737215162021,0.0261301,104740.0,104730.0,0.88268908]
[1737215162437,0.0261301,104740.0,104730.0,0.76579085]
[1737215162661,0.0261301,104740.0,104730.0,0.88268908]
[1737215163042,0.0261301,104740.0,104730.0,0.96448908]
[1737215163623,0.0004283,104760.0,104750.0,0.39353204]
[1737215163837,0.00057815,104760.0,104750.0,0.63267108]
[1737215164548,0.00057815,104760.0,104750.0,0.88267108]
[1737215165911,0.00057815,104760.0,104750.0,0.94007108]
[1737215166133,0.00057815,104760.0,104750.0,0.88267108]
[1737215166749,0.00057815,104760.0,104750.0,0.96447108]
[1737215167104,1.5e-07,104760.0,104750.0,0.96447108]
[1737215167512,1.5e-07,104760.0,104750.0,0.98309829]
[1737215167730,1.5e-07,104760.0,104750.0,0.999089]
[1737215167933,1.5e-07,104760.0,104750.0,0.799089]
[1737215168139,1.5e-07,104760.0,104750.0,1.51777845]
[1737215168745,0.0004283,104770.0,104760.0,0.57106704]
[1737215169028,0.0004283,104770.0,104760.0,0.78266208]
[1737215169347,0.0004283,104770.0,104760.0,0.88266208]
[1737215169574,0.0004283,104770.0,104760.0,0.66576385]
[1737215169955,0.0004283,104770.0,104760.0,0.56576385]
[1737215170160,0.0004283,104770.0,104760.0,0.76576385]
[1737215170320,0.0004283,104770.0,104760.0,0.88266208]
[1737215170564,0.0004283,104770.0,104760.0,0.68459504]
[1737215170784,0.0004283,104770.0,104760.0,0.78266208]
[1737215171405,0.0004283,104770.0,104760.0,0.46769681]
[1737215171666,0.0004283,104770.0,104760.0,0.56576385]
[1737215171879,0.0004283,104770.0,104760.0,0.58459504]
[1737215172251,0.0004283,104770.0,104760.0,0.78266208]
[1737215172873,0.0004283,104770.0,104760.0,0.88266208]
[1737215173077,0.0004283,104770.0,104760.0,1.56541539]
[1737215173716,0.0837281,104790.0,104780.0,0.19806704]
[1737215173893,0.0837281,104790.0,104780.0,0.39274585]
[1737215175265,0.0837281,104790.0,104780.0,0.56574585]
[1737215177675,0.0837281,104790.0,104780.0,0.54274585]
[1737215178197,0.0192461,104790.0,104780.0,0.54274585]
[1737215178673,0.0192461,104790.0,104780.0,1.22519903]
[1737215178832,0.0192461,104790.0,104780.0,1.16103386]
[1737215179044,0.0457,104800.0,104790.0,0.20632987]
[1737215179246,0.0457,104800.0,104790.0,0.20728405]
[1737215179247,0.04584982,104800.0,104790.0,0.20728405]
[1737215179646,0.05228982,104800.0,104790.0,0.10921701]
[1737215180494,0.05228982,104800.0,104790.0,0.10826283]
[1737215180816,0.05228982,104800.0,104790.0,0.20728405]
[1737215180979,0.04584982,104800.0,104790.0,0.30652486]
[1737215181318,0.04584982,104800.0,104790.0,0.30557068]
[1737215182069,0.12884982,104800.0,104790.0,0.30277068]
[1737215182270,0.10384982,104800.0,104790.0,0.30277068]
[1737215183384,0.0732995,104800.0,104790.0,0.30277068]
[1737215184683,0.00644,104810.0,104800.0,0.10810187]
[1737215184936,0.00644,104810.0,104800.0,0.29627983]
[1737215185146,0.00644,104810.0,104800.0,0.39434687]
[1737215185485,0.10185,104810.0,104800.0,0.39434687]
[1737215185862,0.00644,104810.0,104800.0,0.39434687]
[1737215186061,0.00575588,104810.0,104800.0,0.39434687]
[1737215186270,0.05385588,104810.0,104800.0,0.39434687]
[1737215187116,0.0481,104810.0,104800.0,0.39434687]
[1737215187343,0.048528,104830.0,104820.0,0.10543583]
[1737215187966,0.048528,104830.0,104820.0,0.22863056]
[1737215188169,0.000428,104830.0,104820.0,0.59264191]
[1737215190846,0.000428,104830.0,104820.0,0.69264191]
[1737215192483,0.000428,104830.0,104820.0,0.79264191]
[1737215193447,0.000428,104830.0,104820.0,0.69264191]
[1737215193589,0.000428,104830.0,104820.0,0.79264191]
[1737215194542,0.000428,104830.0,104820.0,0.70852618]
[1737215194983,0.000428,104830.0,104820.0,1.38953238]
[1737215195965,0.005,104850.0,104840.0,0.4203831]
[1737215196177,0.04277158,104870.0,104860.0,0.30346687]
[1737215196384,0.04327118,104870.0,104860.0,0.75190591]
[1737215196723,0.04327118,104870.0,104860.0,0.55800768]
[1737215196929,0.04327118,104870.0,104860.0,0.30270768]
[1737215197360,0.095365,104860.0,104850.0,0.20076783]
[1737215197564,0.23399518,104870.0,104850.0,0.58976829]
[1737215197565,0.32935718,104870.0,104850.0,0.58976829]
[1737215197784,0.32935718,104870.0,104860.0,0.19343204]
[1737215197989,0.04327118,104870.0,104860.0,0.19343204]
[1737215198353,0.04327118,104870.0,104860.0,0.30270768]
[1737215201789,0.13862718,104870.0,104860.0,0.095365]
[1737215201985,0.32934118,104870.0,104850.0,0.48957087]
[1737215202193,0.04327118,104870.0,104860.0,0.095365]
[1737215202435,0.13862718,104870.0,104860.0,0.61056057]
[1737215203044,0.13862718,104870.0,104860.0,0.51519557]
[1737215203252,0.47299681,104870.0,104860.0,0.51519557]
[1737215203633,0.1284,104870.0,104860.0,0.51519557]
[1737215203835,0.1284,104870.0,104860.0,0.6205954]
[1737215204040,0.0004277,104880.0,104870.0,0.20345787]
[1737215204241,0.0004277,104880.0,104870.0,0.32665212]
[1737215204242,0.00057751,104880.0,104870.0,0.32665212]
[1737215204446,0.00057751,104880.0,104870.0,0.32569868]
[1737215204950,0.00057751,104880.0,104870.0,0.30269868]
[1737215205581,0.00057751,104880.0,104870.0,0.32569868]
[1737215206748,0.00057751,104880.0,104870.0,0.31566385]
[1737215206948,0.00057751,104880.0,104870.0,0.30269868]
[1737215207578,0.00057751,104880.0,104870.0,0.20463164]
[1737215207755,0.00057751,104880.0,104870.0,0.30365207]
[1737215207934,0.00057751,104880.0,104870.0,0.20463164]
[1737215208129,0.00057751,104880.0,104870.0,0.20558504]
[1737215208389,0.00057751,104880.0,104870.0,0.30365208]
[1737215208586,0.00057751,104880.0,104870.0,0.30269868]
[1737215209353,0.00057751,104880.0,104870.0,0.38607138]
[1737215209577,0.00057751,104880.0,104870.0,0.40907138]
[1737215210439,0.0054277,104900.0,104880.0,0.03303483]
[1737215210638,0.1007557,104900.0,104890.0,0.095337]
[1737215211275,0.0054277,104900.0,104890.0,0.118337]
[1737215211478,0.0054277,104900.0,104890.0,0.12837183]
[1737215212389,0.1007557,104900.0,104890.0,0.12837183]
[1737215212530,0.0054277,104900.0,104890.0,0.12932509]
[1737215213669,0.1007557,104900.0,104890.0,0.12932509]
[1737215213991,0.0054277,104900.0,104890.0,0.2285659]
[1737215214198,0.0054277,104900.0,104890.0,0.22761264]
[1737215214875,0.0054277,104900.0,104890.0,0.32567968]
[1737215216366,0.0054277,104900.0,104890.0,0.55187968]
[1737215216958,0.0054277,104900.0,104890.0,0.40187968]
[1737215217328,0.0054277,104900.0,104890.0,0.55187968]
[1737215217935,0.0054277,104900.0,104890.0,0.57776981]
[1737215218240,0.0054277,104900.0,104890.0,0.55187968]
[1737215218823,0.0054277,104900.0,104890.0,0.45381264]
[1737215219066,0.0054277,104900.0,104890.0,0.22761264]
[1737215219591,0.0054277,104900.0,104890.0,0.30267968]
[1737215219937,0.0054277,104900.0,104890.0,0.20461264]
[1737215220171,0.0054277,104900.0,104890.0,0.22856582]
[1737215220374,0.1007557,104900.0,104890.0,0.13227564]
[1737215220579,0.0054277,104900.0,104890.0,0.32663292]
[1737215220771,0.1007557,104900.0,104890.0,0.22761264]
[1737215220976,0.1007557,104900.0,104890.0,0.13227564]
[1737215221324,0.1007557,104900.0,104890.0,0.01003483]
[1737215221733,0.095337,104890.0,104880.0,0.20344087]
[1737215221934,0.095337,104890.0,104880.0,0.10927564]
[1737215222322,0.476707,104890.0,104870.0,0.29697895]
[1737215222595,0.476705,104890.0,104870.0,0.6849978]
[1737215222791,0.476705,104890.0,104870.0,0.58693076]
[1737215222996,0.286021,104890.0,104880.0,0.10538183]
[1737215223197,0.286021,104890.0,104870.0,0.3035928]
[1737215223198,0.095347,104880.0,104870.0,0.3035928]
[1737215223399,0.095347,104880.0,104870.0,0.11017276]
[1737215223640,0.141847,104880.0,104870.0,0.01093195]
[1737215223837,0.141847,104880.0,104870.0,0.00089712]
[1737215224216,0.141847,104880.0,104870.0,0.10628795]
[1737215224421,0.0465,104880.0,104870.0,0.22852876]
[1737215224639,0.141847,104880.0,104870.0,0.01093195]
[1737215224926,0.0465,104880.0,104870.0,0.22852876]
[1737215225190,0.141847,104880.0,104870.0,0.22852876]
[1737215225390,0.141847,104880.0,104870.0,0.21849393]
[1737215225525,0.141847,104880.0,104870.0,0.01093195]
[1737215225862,0.141847,104880.0,104870.0,0.00089712]
[1737215226274,0.14143217,104880.0,104870.0,0.00089712]
[1737215226891,0.14143217,104880.0,104870.0,0.09625312]
[1737215227104,0.14143217,104880.0,104870.0,0.00089712]
[1737215227997,0.21673217,104880.0,104870.0,0.00089712]
[1737215228559,0.31597298,104880.0,104870.0,0.00089712]
[1737215230384,0.50517896,104880.0,104870.0,0.00089712]
[1737215230595,0.40593815,104880.0,104870.0,0.00089712]
[1737215232271,0.40787111,104880.0,104870.0,0.00089712]
[1737215232841,0.31790594,104880.0,104870.0,0.00089712]
[1737215233480,0.40787111,104880.0,104870.0,0.00089712]
[1737215233889,0.50711192,104880.0,104870.0,0.00089712]
[1737215234089,0.40787111,104880.0,104870.0,0.00089712]
[1737215234435,0.41427111,104880.0,104870.0,0.00089712]
[1737215234953,0.32430594,104880.0,104870.0,0.00089712]
[1737215235149,0.41427111,104880.0,104870.0,0.00089712]
[1737215235390,0.42737962,104880.0,104870.0,0.00089712]
[1737215235590,0.33101445,104880.0,104870.0,0.00089712]
[1737215235786,0.32237298,104880.0,104870.0,0.00089712]
[1737215235991,0.21673217,104880.0,104870.0,0.00089712]
[1737215236197,0.22313217,104880.0,104870.0,0.00089712]
[1737215237810,0.12778517,104880.0,104850.0,0.39409999]
[1737215238004,0.095365,104860.0,104850.0,0.10810187]
[1737215238147,0.095365,104860.0,104850.0,0.09856664]
[1737215238757,0.095365,104860.0,104850.0,0.0004996]
[1737215239660,0.095365,104860.0,104850.0,0.0958736]
[1737215240676,0.095365,104860.0,104850.0,0.0004996]
[1737215240852,0.095365,104860.0,104850.0,0.0958736]
[1737215241354,0.095365,104860.0,104850.0,0.0004996]
[1737215241591,0.094865,104860.0,104850.0,0.0004996]
[1737215242178,0.094865,104860.0,104850.0,0.0958736]
[1737215242374,0.094865,104860.0,104850.0,0.0004996]
[1737215242754,0.094865,104860.0,104850.0,0.0958736]
[1737215243169,0.094865,104860.0,104850.0,0.0004996]
[1737215243379,0.094865,104860.0,104850.0,0.0958736]
[1737215243806,0.094865,104860.0,104850.0,0.0004996]
[1737215243990,0.483202,104870.0,104850.0,0.30146392]
[1737215244312,0.476803,104870.0,104850.0,0.58756692]
[1737215244515,0.095365,104860.0,104850.0,0.0958666]
[1737215244736,0.095365,104860.0,104850.0,0.0004996]
[1737215245536,0.101765,104860.0,104850.0,0.0004996]
[1737215246530,0.183765,104860.0,104850.0,0.0004996]
[1737215247434,0.28300581,104860.0,104850.0,0.0004996]
[1737215250319,0.29630306,104860.0,104850.0,0.0004996]
[1737215250689,0.29630306,104860.0,104850.0,0.00139693]
[1737215251148,0.34310306,104860.0,104850.0,0.00139693]
[1737215252271,0.33670306,104860.0,104850.0,0.00139693]
[1737215252479,0.34310306,104860.0,104850.0,0.00139693]
[1737215252655,0.49310306,104860.0,104850.0,0.00139693]
[1737215253277,0.49310306,104860.0,104850.0,9.3e-07]
[1737215254441,0.34503602,104860.0,104850.0,9.3e-07]
[1737215254655,0.43500119,104860.0,104850.0,9.3e-07]
[1737215255069,0.49503602,104860.0,104850.0,9.3e-07]
[1737215255268,0.49310306,104860.0,104850.0,9.3e-07]
[1737215258215,0.57852345,104860.0,104850.0,9.3e-07]
[1737215261057,0.291492,104830.0,104820.0,0.00089754]
[1737215261254,0.48709798,104830.0,104820.0,0.00089754]
[1737215261979,0.47506577,104830.0,104820.0,0.00089754]
[1737215263095,0.55863094,104830.0,104820.0,0.00089754]
[1737215263237,0.56503094,104830.0,104820.0,0.00089754]
[1737215263434,0.56309798,104830.0,104820.0,0.00089754]
[1737215263640,0.56503094,104830.0,104820.0,0.00089754]
[1737215263857,0.66427175,104830.0,104820.0,0.00089754]
[1737215264265,0.66233879,104830.0,104820.0,0.00089754]
[1737215264448,0.66427175,104830.0,104820.0,0.00089754]
[1737215264998,0.56503094,104830.0,104820.0,0.00089754]
[1737215265360,0.57816276,104830.0,104820.0,0.00089754]
[1737215265728,0.48819759,104830.0,104820.0,0.00089754]
[1737215266672,0.5762298,104830.0,104820.0,0.00089754]
[1737215266886,0.4541298,104830.0,104820.0,0.00089754]
[1737215268128,0.36416463,104830.0,104820.0,0.00089754]
[1737215268333,0.4541298,104830.0,104820.0,0.00089754]
[1737215269153,0.36416463,104830.0,104820.0,0.00089754]
[1737215269385,0.4541298,104830.0,104820.0,0.00089754]
[1737215270369,0.44396463,104830.0,104820.0,0.00089754]
[1737215270612,0.59020544,104830.0,104820.0,0.00089754]
[1737215271410,0.5921384,104830.0,104820.0,0.00089754]
[1737215272451,0.59020544,104830.0,104820.0,0.00089754]
[1737215273239,0.49096463,104830.0,104820.0,0.00089754]
[1737215274144,0.5104654,104830.0,104820.0,0.00089754]
[1737215275898,0.51239836,104830.0,104820.0,0.00089754]
[1737215276312,0.60236353,104830.0,104820.0,0.00089754]
[1737215276485,0.60043057,104830.0,104820.0,0.00089754]
[1737215276689,0.49289759,104830.0,104820.0,0.00089754]
[1737215282874,0.5745298,104830.0,104820.0,0.00089754]
[1737215283078,0.5011298,104830.0,104820.0,0.00089754]
[1737215284220,0.50306276,104830.0,104820.0,0.00089754]
[1737215285129,0.5011298,104830.0,104820.0,0.00089754]
[1737215285331,0.50306276,104830.0,104820.0,0.00089754]
[1737215285789,0.5011298,104830.0,104820.0,0.00089754]
[1737215285946,0.5517665,104830.0,104820.0,0.00089754]
[1737215286144,0.5011298,104830.0,104820.0,0.00089754]
[1737215286396,0.4541298,104830.0,104820.0,0.00089754]
[1737215286570,0.44966276,104830.0,104820.0,0.00089754]
[1737215286745,0.20776463,104830.0,104820.0,0.00089754]
[1737215286955,0.101792,104830.0,104820.0,0.00089754]
[1737215287151,0.29099798,104830.0,104820.0,0.00089754]
[1737215287358,0.34599483,104830.0,104820.0,0.00089754]
[1737215287537,0.49599483,104830.0,104820.0,0.00089754]
[1737215288220,0.34703281,104830.0,104820.0,0.00089754]
[1737215288391,0.42553281,104830.0,104820.0,0.00089754]
[1737215288610,0.42746577,104830.0,104820.0,0.00089754]
[1737215289037,0.47256577,104830.0,104820.0,0.00089754]
[1737215289240,0.47063281,104830.0,104820.0,0.00089754]
[1737215289445,0.56987362,104830.0,104820.0,0.00089754]
[1737215289871,0.47063281,104830.0,104820.0,0.00089754]
[1737215290946,0.76792568,104830.0,104820.0,0.00089754]
[1737215291765,0.76152568,104830.0,104820.0,0.00089754]
[1737215291964,0.76792568,104830.0,104820.0,0.00089754]
[1737215292597,0.979387,104830.0,104820.0,0.00089754]
[1737215293359,0.76792568,104830.0,104820.0,0.00089754]
[1737215293771,0.69135864,104830.0,104820.0,0.00089754]
[1737215293972,0.57982381,104830.0,104820.0,0.00089754]
[1737215294346,0.73622381,104830.0,104820.0,0.00089754]
[1737215294687,0.56641295,104830.0,104820.0,0.00089754]
[1737215295988,0.43699798,104830.0,104820.0,0.00089754]
[1737215296193,0.091392,104830.0,104820.0,0.07979754]
[1737215296392,0.0064,104830.0,104820.0,0.17519854]
[1737215296594,0.61054419,104840.0,104820.0,0.36600154]
[1737215296797,0.61054419,104840.0,104820.0,0.65485858]
[1737215297097,0.10179,104840.0,104820.0,0.65485858]
[1737215297317,0.29772017,104850.0,104840.0,0.178283]
[1737215297727,0.39949417,104850.0,104840.0,0.178283]
[1737215297974,0.29772017,104850.0,104840.0,0.178283]
[1737215298210,0.39309417,104850.0,104840.0,0.178283]
[1737215298383,0.0958013,104850.0,104840.0,0.178283]
[1737215298904,0.0004273,104850.0,104840.0,0.178283]
[1737215300856,0.0004273,104850.0,104840.0,0.27635004]
[1737215303371,0.0004273,104850.0,104840.0,0.72542391]
[1737215303486,0.00092609,104860.0,104850.0,0.3433741]
[1737215303689,0.00092609,104860.0,104850.0,0.72541491]
[1737215304390,0.0004273,104880.0,104870.0,0.35245787]
[1737215304595,0.0004273,104880.0,104870.0,0.35260768]
[1737215305482,0.0004273,104880.0,104870.0,0.25454064]
[1737215305713,0.0004273,104880.0,104870.0,0.32960768]
[1737215308457,0.0004273,104880.0,104870.0,0.57884849]
[1737215311228,0.0004273,104880.0,104870.0,0.48078145]
[1737215311645,0.0004273,104880.0,104870.0,0.57884849]
[1737215312057,0.0004273,104880.0,104870.0,0.48078145]
[1737215312585,0.0004273,104880.0,104870.0,0.42884849]
[1737215312788,0.0004273,104880.0,104870.0,0.28650768]
[1737215312992,0.0004273,104880.0,104870.0,0.06818349]
[1737215313193,0.0004273,104880.0,104870.0,0.09184713]
[1737215314139,0.0957743,104880.0,104860.0,0.476787]
[1737215314339,0.0957743,104880.0,104860.0,0.67139281]
[1737215314340,0.09592391,104880.0,104860.0,0.67139281]
[1737215314563,0.28661891,104880.0,104860.0,0.476789]
[1737215314759,0.19127191,104880.0,104860.0,0.28608]
[1737215314900,0.28662291,104880.0,104860.0,0.476802]
[1737215315114,0.095358,104870.0,104850.0,0.430271]
[1737215315322,0.47733191,104880.0,104860.0,0.286092]
[1737215315524,0.47733191,104880.0,104850.0,0.52951181]
[1737215315525,0.095356,104870.0,104850.0,0.286101]
[1737215315731,0.286077,104870.0,104850.0,0.47684]
[1737215315969,0.286077,104870.0,104850.0,0.667579]
[1737215316177,0.286077,104870.0,104850.0,0.47684]
[1737215316734,0.095365,104860.0,104850.0,0.095367]
[1737215316930,0.286084,104870.0,104850.0,0.286115]
[1737215317321,0.286099,104860.0,104840.0,0.554789]
[1737215317521,0.286099,104860.0,104840.0,0.65402981]
[1737215317758,0.476839,104860.0,104840.0,0.364031]
[1737215317937,0.476839,104860.0,104830.0,0.334959]
[1737215317938,0.286131,104850.0,104830.0,0.334959]
[1737215318145,0.190752,104850.0,104830.0,0.095391]
[1737215318329,0.476886,104850.0,104830.0,0.286167]
[1737215318534,0.286129,104850.0,104830.0,0.66868081]
[1737215318744,0.476888,104850.0,104830.0,0.28712081]
[1737215318930,0.476888,104850.0,104830.0,0.47789681]
[1737215318931,0.286129,104850.0,104830.0,0.47789681]
[1737215319319,0.286129,104850.0,104830.0,0.66867081]
[1737215319513,0.476887,104850.0,104830.0,0.28711881]
[1737215319733,0.095383,104840.0,104820.0,0.38248254]
[1737215320070,0.667651,104850.0,104830.0,0.095392]
[1737215320275,0.476891,104850.0,104830.0,0.095392]
[1737215320432,0.476891,104850.0,104830.0,0.286175]
[1737215320968,0.095383,104840.0,104830.0,0.190783]
[1737215321137,0.28615,104840.0,104820.0,0.46038154]
[1737215321342,0.095383,104840.0,104820.0,0.65117454]
[1737215321540,0.095383,104840.0,104830.0,0.095392]
[1737215322163,0.27398056,104850.0,104830.0,0.286173]
[1737215322541,0.27398056,104850.0,104830.0,0.476957]
[1737215322952,0.00014956,104850.0,104840.0,0.095383]
[1737215323164,0.28943178,104860.0,104840.0,0.095383]
[1737215323408,0.095374,104850.0,104840.0,0.00049889]
[1737215323572,0.095374,104850.0,104840.0,0.09588189]
[1737215323994,0.095374,104850.0,104840.0,0.00049889]
[1737215325284,0.095374,104850.0,104840.0,0.09588189]
[1737215325899,0.50003979,104860.0,104840.0,0.09588189]
[1737215326076,0.78615379,104860.0,104840.0,0.28664789]
[1737215326323,0.69078179,104860.0,104840.0,0.00049889]
[1737215326484,0.095374,104850.0,104840.0,0.09588089]
[1737215326685,0.69078179,104860.0,104840.0,0.09588089]
[1737215326686,0.59540779,104860.0,104840.0,0.09588089]
[1737215327000,0.095374,104850.0,104840.0,0.00049889]
[1737215327207,0.095374,104850.0,104840.0,0.09588189]
[1737215327608,0.095374,104850.0,104840.0,0.00032289]
[1737215328826,0.65093039,104850.0,104840.0,0.00032289]
[1737215329026,0.75093039,104850.0,104840.0,0.00032289]
[1737215329204,0.59531481,104850.0,104840.0,0.00032289]
[1737215329610,0.57231481,104850.0,104840.0,0.00032289]
[1737215329830,0.47231481,104850.0,104840.0,0.00032289]
[1737215330040,0.29902398,104860.0,104840.0,0.09569989]
[1737215330243,0.095366,104860.0,104840.0,0.6543617]
[1737215330468,0.476797,104870.0,104850.0,0.286122]
[1737215330617,0.286073,104870.0,104850.0,0.47687]
[1737215330831,0.0004273,104880.0,104870.0,0.095356]
[1737215331051,0.0957743,104880.0,104860.0,0.70213181]
[1737215331253,0.08490554,104870.0,104860.0,0.66141381]
[1737215331632,0.08490554,104870.0,104860.0,0.66130032]
[1737215332444,0.29772017,104880.0,104870.0,0.095356]
[1737215332445,0.0004273,104880.0,104870.0,0.095356]
[1737215333409,0.0004273,104880.0,104870.0,0.09630943]
[1737215338376,0.0004273,104880.0,104870.0,0.19555024]
[1737215340149,0.0004271,104890.0,104870.0,0.19555024]
[1737215340150,0.09898751,104900.0,104890.0,0.095337]
[1737215341293,0.09948682,104900.0,104890.0,0.095337]
[1737215341496,0.00415082,104900.0,104890.0,0.095337]
[1737215342732,0.00415082,104900.0,104890.0,0.09629029]
[1737215343744,0.00415082,104900.0,104880.0,0.476703]
[1737215343745,0.29014282,104900.0,104880.0,0.476703]
[1737215343952,0.29014282,104900.0,104880.0,0.48060281]
[1737215344109,0.29014282,104900.0,104890.0,0.095337]
[1737215344313,0.09948382,104900.0,104890.0,0.095337]
[1737215344508,0.00415082,104900.0,104890.0,0.095337]
[1737215344708,0.00415082,104900.0,104890.0,0.221437]
[1737215344924,0.00415082,104900.0,104890.0,0.32067781]
[1737215346998,0.00415082,104900.0,104890.0,0.095337]
[1737215347208,0.48080082,104900.0,104880.0,0.552502]
[1737215347416,0.09947882,104900.0,104890.0,0.095337]
[1737215347616,0.29013682,104900.0,104880.0,0.57594381]
[1737215347816,0.095337,104890.0,104870.0,0.312002]
[1737215348000,0.61350382,104900.0,104870.0,0.55643981]
[1737215348372,0.095337,104890.0,104880.0,0.436032]
[1737215348574,0.42283882,104900.0,104880.0,0.286032]
[1737215348949,0.23218082,104900.0,104880.0,0.286032]
[1737215349377,0.23217982,104900.0,104880.0,0.245342]
[1737215349698,0.23217982,104900.0,104880.0,0.436036]
[1737215349902,0.08695082,104900.0,104890.0,0.095337]
[1737215351354,0.08695082,104900.0,104880.0,0.48060581]
[1737215351554,0.08695082,104900.0,104880.0,0.67128881]
[1737215351762,0.08695082,104900.0,104890.0,0.095337]
[1737215351976,0.08695082,104900.0,104880.0,0.67128781]
[1737215352158,0.08695082,104900.0,104880.0,0.48060481]
[1737215352356,0.08695082,104900.0,104880.0,0.57594481]
[1737215352560,0.18227982,104900.0,104880.0,0.286021]
[1737215352766,0.08695082,104900.0,104890.0,0.095337]
[1737215352972,0.00415082,104900.0,104890.0,0.095337]
[1737215353209,0.00415082,104900.0,104880.0,0.48060281]
[1737215353358,0.00415082,104900.0,104880.0,0.57594181]
[1737215353557,0.00415082,104900.0,104880.0,0.57594381]
[1737215354180,0.37294282,104900.0,104880.0,0.095346]
[1737215354628,0.18228482,104900.0,104880.0,0.286037]
[1737215354965,0.095339,104890.0,104870.0,0.09625338]
[1737215355406,0.52209363,104900.0,104880.0,0.095346]
[1737215355610,0.71276063,104900.0,104870.0,0.47766138]
[1737215355784,0.61742563,104900.0,104870.0,0.47766138]
[1737215355991,0.71276063,104900.0,104870.0,0.47766138]
[1737215356203,0.61742563,104900.0,104870.0,0.28695038]
[1737215356415,0.28992581,104890.0,104870.0,0.00089838]
[1737215356558,0.57595581,104890.0,104870.0,0.00089838]
[1737215356771,0.095347,104880.0,104870.0,0.00089838]
[1737215356993,0.57595381,104890.0,104870.0,0.00089838]
[1737215357653,0.76664081,104890.0,104870.0,0.00089838]
[1737215357910,0.57595381,104890.0,104870.0,0.00089838]
[1737215358927,0.38526781,104890.0,104870.0,0.09625238]
[1737215359137,0.61352082,104900.0,104870.0,0.47767538]
[1737215359522,0.09534,104890.0,104870.0,0.28696338]
[1737215359852,0.72503128,104900.0,104870.0,0.47767438]
[1737215360052,0.53436328,104900.0,104870.0,0.47767438]
[1737215360516,0.72502928,104900.0,104870.0,0.28696338]
[1737215361540,0.7743455,104900.0,104870.0,0.28696338]
[1737215362171,0.286018,104890.0,104870.0,0.00089838]
[1737215362942,0.38525881,104890.0,104870.0,0.00089838]
[1737215363145,0.0824,104880.0,104870.0,0.00089838]
[1737215367214,0.0824,104880.0,104870.0,0.09625438]